fUST/lending_fUST_20240721
["ID","MTS","AMOUNT","RATE_DAILY","PERIOD"]
[332743498,1721499039486,-344.04786857,0.00013698,2]
[332743499,1721499039494,-500.0,0.00013698,2]
[332743500,1721499039503,-952.16639927,0.00013698,2]
[332743501,1721499039515,-1178.75360073,0.00013698,2]
[332743502,1721499039524,-501.41673418,0.00013698,2]
[332743503,1721499039534,-500.0,0.00013698,2]
[332743504,1721499039543,-500.0,0.00013698,2]
[332743505,1721499039554,-193.33998903,0.00013698,2]
[332743506,1721499039563,-526.74,0.00013698,2]
[332743507,1721499039572,-500.0,0.00013698,2]
[332743508,1721499039581,-500.0,0.00013698,2]
[332743509,1721499039590,-500.0,0.00013698,2]
[332743510,1721499039603,-488.59552143,0.00013698,2]
[332743511,1721499039612,-500.0,0.00013698,2]
[332743512,1721499039621,-524.75018145,0.00013698,2]
[332743513,1721499039630,-544.32,0.00013698,2]
[332743514,1721499039639,-500.0,0.00013698,2]
[332743515,1721499039649,-910.5,0.00013698,2]
[332743516,1721499039658,-500.0,0.00013698,2]
[332743517,1721499039667,-500.0,0.00013698,2]
[332743518,1721499039676,-500.0,0.00013698,2]
[332743519,1721499039686,-500.0,0.00013698,2]
[332743520,1721499039695,-500.0,0.00013698,2]
[332743521,1721499039704,-660.69,0.00013698,2]
[332743522,1721499039714,-720.51,0.00013698,2]
[332743523,1721499039723,-500.0,0.00013698,2]
[332743524,1721499039732,-500.0,0.00013698,2]
[332743525,1721499039741,-500.0,0.00013698,2]
[332743526,1721499039750,-500.0,0.00013698,2]
[332743527,1721499039759,-1673.44,0.00013698,2]
[332743528,1721499039768,-1332.23,0.00013698,2]
[332743529,1721499039776,-548.51,0.00013698,2]
[332743530,1721499039785,-69.59068047,0.00013698,2]
[332743531,1721499039798,-430.40931953,0.00013698,2]
[332743532,1721499039808,-902.36,0.00013698,2]
[332743533,1721499039817,-597.39,0.00013698,2]
[332743534,1721499039827,-356.98664003,0.00013698,2]
[332743565,1721499040583,-160.297627,0.00012867,2]
[332743567,1721499040596,-160.297627,0.00012902,2]
[332743569,1721499040608,-160.297627,0.00012937,2]
[332743571,1721499040617,-512.91335997,0.00013698,2]
[332743573,1721499040627,-507.61720522,0.00013698,2]
[332743575,1721499040636,-500.0,0.00013698,2]
[332743577,1721499040647,-500.0,0.00013698,2]
[332743579,1721499040657,-500.0,0.00013698,2]
[332743581,1721499040667,-438.12047653,0.00013698,2]
[332743584,1721499040683,-61.87952347,0.00013698,2]
[332743586,1721499040692,-224.4656124,0.00013698,2]
[332743588,1721499040702,-108.09084378,0.00013698,2]
[332743590,1721499040715,-391.90915622,0.00013698,2]
[332743593,1721499040727,-500.0,0.00013698,2]
[332743594,1721499040737,-762.2,0.00013698,2]
[332743596,1721499040747,-2169.13,0.00013698,2]
[332743598,1721499040757,-835.03,0.00013698,2]
[332743599,1721499040766,-740.75,0.00013698,2]
[332743600,1721499040777,-500.0,0.00013698,2]
[332743602,1721499040787,-500.0,0.00013698,2]
[332743603,1721499040797,-500.0,0.00013698,2]
[332743604,1721499040806,-531.7,0.00013698,2]
[332743605,1721499040816,-500.0,0.00013698,2]
[332743606,1721499040825,-701.25,0.00013698,2]
[332743607,1721499040835,-500.0,0.00013698,2]
[332743608,1721499040844,-1584.88,0.00013698,2]
[332743609,1721499040854,-500.0,0.00013698,2]
[332743610,1721499040863,-500.0,0.00013698,2]
[332743611,1721499040872,-500.0,0.00013698,2]
[332743612,1721499040881,-934.39,0.00013698,2]
[332743613,1721499040890,-525.7,0.00013698,2]
[332743614,1721499040899,-500.0,0.00013698,2]
[332743615,1721499040909,-500.0,0.00013698,2]
[332743616,1721499040919,-752.67,0.00013698,2]
[332743617,1721499040929,-500.0,0.00013698,2]
[332743618,1721499040939,-500.0,0.00013698,2]
[332743619,1721499040948,-2734.25,0.00013698,2]
[332743620,1721499040957,-725.05,0.00013698,2]
[332743621,1721499040967,-500.0,0.00013698,2]
[332743622,1721499040976,-570.98,0.00013698,2]
[332743623,1721499040985,-500.0,0.00013698,2]
[332743624,1721499040994,-2945.57,0.00013698,2]
[332743625,1721499041003,-500.0,0.00013698,2]
[332743626,1721499041012,-1034.67,0.00013698,2]
[332743627,1721499041022,-500.0,0.00013698,2]
[332743628,1721499041031,-500.0,0.00013698,2]
[332743629,1721499041041,-833.3,0.00013698,2]
[332743630,1721499041051,-500.0,0.00013698,2]
[332743631,1721499041060,-500.0,0.00013698,2]
[332743632,1721499041070,-928.45,0.00013698,2]
[332743633,1721499041080,-592.23,0.00013698,2]
[332743634,1721499041089,-1992.23,0.00013698,2]
[332743635,1721499041098,-500.0,0.00013698,2]
[332743636,1721499041107,-500.0,0.00013698,2]
[332743637,1721499041117,-500.0,0.00013698,2]
[332743638,1721499041126,-500.0,0.00013698,2]
[332743639,1721499041135,-545.40045561,0.00013698,2]
[332743640,1721499041144,-523.83,0.00013698,2]
[332743641,1721499041154,-500.0,0.00013698,2]
[332743642,1721499041163,-415.26668233,0.00013698,2]
[332743643,1721499041173,-500.0,0.00013698,2]
[332743644,1721499041183,-1060.9,0.00013698,2]
[332743645,1721499041192,-513.99920471,0.00013698,2]
[332743646,1721499041201,-500.0,0.00013698,2]
[332743647,1721499041211,-724.27,0.00013698,2]
[332743648,1721499041222,-500.0,0.00013698,2]
[332743649,1721499041231,-500.0,0.00013698,2]
[332743650,1721499041240,-607.89,0.00013698,2]
[332743651,1721499041250,-582.80298837,0.00013698,2]
[332743652,1721499041259,-805.79,0.00013698,2]
[332743653,1721499041268,-500.0,0.00013698,2]
[332743654,1721499041278,-546.65,0.00013698,2]
[332743655,1721499041287,-500.0,0.00013698,2]
[332743656,1721499041297,-3780.7,0.00013698,2]
[332743657,1721499041308,-500.0,0.00013698,2]
[332743658,1721499041319,-554.63644339,0.00013698,2]
[332743659,1721499041329,-500.0,0.00013698,2]
[332743660,1721499041339,-500.0,0.00013698,2]
[332743661,1721499041353,-526.69,0.00013698,2]
[332743662,1721499041362,-500.0,0.00013698,2]
[332743663,1721499041372,-1297.65,0.00013698,2]
[332743664,1721499041381,-622.83,0.00013698,2]
[332743665,1721499041390,-1025.46,0.00013698,2]
[332743666,1721499041401,-502.8377914,0.00013698,2]
[332743667,1721499041410,-675.88,0.00013698,2]
[332743668,1721499041419,-527.11963763,0.00013698,2]
[332743669,1721499041428,-500.0,0.00013698,2]
[332743670,1721499041437,-1664.27,0.00013698,2]
[332743671,1721499041447,-500.0,0.00013698,2]
[332743672,1721499041457,-500.0,0.00013698,2]
[332743673,1721499041467,-500.0,0.00013698,2]
[332743674,1721499041478,-500.0,0.00013698,2]
[332743675,1721499041488,-500.0,0.00013698,2]
[332743676,1721499041500,-528.9,0.00013698,2]
[332743677,1721499041511,-500.0,0.00013698,2]
[332743678,1721499041521,-500.0,0.00013698,2]
[332743679,1721499041530,-500.0,0.00013698,2]
[332743680,1721499041540,-508.61,0.00013698,2]
[332743681,1721499041550,-500.0,0.00013698,2]
[332743682,1721499041560,-538.08,0.00013698,2]
[332743683,1721499041570,-500.0,0.00013698,2]
[332743684,1721499041580,-500.0,0.00013698,2]
[332743685,1721499041592,-717.38,0.00013698,2]
[332743686,1721499041607,-500.0,0.00013698,2]
[332743687,1721499041617,-519.43,0.00013698,2]
[332743688,1721499041628,-500.0,0.00013698,2]
[332743689,1721499041638,-500.0,0.00013698,2]
[332743690,1721499041648,-1679.98,0.00013698,2]
[332743691,1721499041658,-500.0,0.00013698,2]
[332743692,1721499041668,-150.0,0.00013698,2]
[332743693,1721499041678,-501.43123297,0.00013698,2]
[332743694,1721499041687,-500.0,0.00013698,2]
[332743695,1721499041696,-500.0,0.00013698,2]
[332743696,1721499041705,-500.0,0.00013698,2]
[332743697,1721499041714,-500.0,0.00013698,2]
[332743698,1721499041722,-500.0,0.00013698,2]
[332743699,1721499041732,-500.0,0.00013698,2]
[332743700,1721499041741,-1085.36,0.00013698,2]
[332743701,1721499041750,-500.0,0.00013698,2]
[332743702,1721499041759,-500.0,0.00013698,2]
[332743703,1721499041768,-500.0,0.00013698,2]
[332743704,1721499041777,-535.13087164,0.00013698,2]
[332743705,1721499041787,-355.50504189,0.00013698,2]
[332743706,1721499041795,-500.0,0.00013698,2]
[332743707,1721499041806,-500.0,0.00013698,2]
[332743708,1721499041815,-754.55,0.00013698,2]
[332743709,1721499041824,-500.0,0.00013698,2]
[332743710,1721499041833,-500.0,0.00013698,2]
[332743711,1721499041843,-500.0,0.00013698,2]
[332743712,1721499041851,-500.0,0.00013698,2]
[332743713,1721499041861,-2398.42,0.00013698,2]
[332743714,1721499041870,-500.0,0.00013698,2]
[332743715,1721499041879,-500.0,0.00013698,2]
[332743716,1721499041888,-500.0,0.00013698,2]
[332743717,1721499041897,-806.47,0.00013698,2]
[332743718,1721499041906,-1508.3,0.00013698,2]
[332743719,1721499041915,-500.0,0.00013698,2]
[332743720,1721499041924,-786.0,0.00013698,2]
[332743721,1721499041932,-500.0,0.00013698,2]
[332743722,1721499041942,-500.0,0.00013698,2]
[332743723,1721499041952,-500.0,0.00013698,2]
[332743724,1721499041961,-500.0,0.00013698,2]
[332743725,1721499041970,-500.0,0.00013698,2]
[332743726,1721499041980,-500.0,0.00013698,2]
[332743727,1721499041989,-593.86,0.00013698,2]
[332743728,1721499041999,-1912.22,0.00013698,2]
[332743729,1721499042009,-500.0,0.00013698,2]
[332743730,1721499042018,-500.0,0.00013698,2]
[332743731,1721499042027,-1508.96,0.00013698,2]
[332743732,1721499042037,-500.0,0.00013698,2]
[332743733,1721499042047,-1322.93,0.00013698,2]
[332743734,1721499042057,-500.0,0.00013698,2]
[332743735,1721499042066,-500.0,0.00013698,2]
[332743736,1721499042075,-1861.19,0.00013698,2]
[332743737,1721499042086,-1167.46,0.00013698,2]
[332743738,1721499042095,-1202.22,0.00013698,2]
[332743739,1721499042104,-500.0,0.00013698,2]
[332743740,1721499042112,-500.0,0.00013698,2]
[332743741,1721499042122,-500.0,0.00013698,2]
[332743742,1721499042130,-500.0,0.00013698,2]
[332743743,1721499042139,-500.0,0.00013698,2]
[332743744,1721499042148,-646.42895219,0.00013698,2]
[332743745,1721499042157,-258.57234386,0.00013698,2]
[332743746,1721499042166,-2002.39,0.00013698,2]
[332743747,1721499042175,-500.0,0.00013698,2]
[332743748,1721499042184,-635.35,0.00013698,2]
[332743749,1721499042193,-500.0,0.00013698,2]
[332743750,1721499042202,-500.0,0.00013698,2]
[332743751,1721499042212,-500.0,0.00013698,2]
[332743752,1721499042221,-500.0,0.00013698,2]
[332743753,1721499042230,-1567.75,0.00013698,2]
[332743754,1721499042239,-500.0,0.00013698,2]
[332743755,1721499042249,-632.8,0.00013698,2]
[332743756,1721499042258,-500.0,0.00013698,2]
[332743757,1721499042267,-590.3,0.00013698,2]
[332743758,1721499042277,-269.65233102,0.00013698,2]
[332743759,1721499042286,-500.0,0.00013698,2]
[332743760,1721499042295,-500.0,0.00013698,2]
[332743761,1721499042307,-500.0,0.00013698,2]
[332743762,1721499042316,-500.0,0.00013698,2]
[332743763,1721499042325,-500.0,0.00013698,2]
[332743764,1721499042334,-1124.35,0.00013698,2]
[332743765,1721499042344,-500.0,0.00013698,2]
[332743766,1721499042353,-500.0,0.00013698,2]
[332743767,1721499042362,-618.92,0.00013698,2]
[332743768,1721499042371,-666.7,0.00013698,2]
[332743769,1721499042380,-37936.0,0.00013698,2]
[332743770,1721499042389,-500.0,0.00013698,2]
[332743771,1721499042398,-680.66,0.00013698,2]
[332743772,1721499042407,-500.0,0.00013698,2]
[332743773,1721499042417,-2053.87,0.00013698,2]
[332743774,1721499042426,-564.55397441,0.00013698,2]
[332743775,1721499042435,-500.0,0.00013698,2]
[332743776,1721499042444,-2051.78,0.00013698,2]
[332743777,1721499042454,-500.0,0.00013698,2]
[332743778,1721499042463,-193.22353054,0.00013698,2]
[332743779,1721499042473,-3378.33,0.00013698,2]
[332743780,1721499042483,-500.0,0.00013698,2]
[332743781,1721499042492,-500.0,0.00013698,2]
[332743782,1721499042501,-609.52367989,0.00013698,2]
[332743783,1721499042510,-918.34,0.00013698,2]
[332743784,1721499042520,-4894.28,0.00013698,2]
[332743785,1721499042528,-52978.19,0.00013698,2]
[332743786,1721499042537,-500.0,0.00013698,2]
[332743787,1721499042546,-572.26,0.00013698,2]
[332743788,1721499042558,-500.0,0.00013698,2]
[332743789,1721499042567,-920.14,0.00013698,2]
[332743790,1721499042577,-1353.12,0.00013698,2]
[332743791,1721499042586,-2652.06,0.00013698,2]
[332743792,1721499042597,-566.45,0.00013698,2]
[332743793,1721499042607,-500.0,0.00013698,2]
[332743794,1721499042616,-908.21,0.00013698,2]
[332743795,1721499042625,-500.0,0.00013698,2]
[332743796,1721499042635,-500.0,0.00013698,2]
[332743797,1721499042644,-500.0,0.00013698,2]
[332743798,1721499042654,-1798.8,0.00013698,2]
[332743799,1721499042663,-500.97603392,0.00013698,2]
[332743800,1721499042672,-1179.22,0.00013698,2]
[332743801,1721499042682,-2067.31,0.00013698,2]
[332743802,1721499042691,-500.0,0.00013698,2]
[332743803,1721499042699,-947.24,0.00013698,2]
[332743804,1721499042708,-500.0,0.00013698,2]
[332743805,1721499042717,-500.0,0.00013698,2]
[332743806,1721499042726,-500.0,0.00013698,2]
[332743807,1721499042735,-500.0,0.00013698,2]
[332743808,1721499042744,-500.0,0.00013698,2]
[332743809,1721499042753,-500.0,0.00013698,2]
[332743810,1721499042762,-500.0,0.00013698,2]
[332743811,1721499042771,-809.49,0.00013698,2]
[332743812,1721499042781,-500.0,0.00013698,2]
[332743813,1721499042789,-500.0,0.00013698,2]
[332743814,1721499042799,-500.0,0.00013698,2]
[332743815,1721499042808,-500.0,0.00013698,2]
[332743816,1721499042818,-500.0,0.00013698,2]
[332743817,1721499042827,-500.0,0.00013698,2]
[332743818,1721499042836,-500.0,0.00013698,2]
[332743819,1721499042845,-455.75116135,0.00013698,2]
[332743820,1721499042854,-500.0,0.00013698,2]
[332743821,1721499042863,-510.61609016,0.00013698,2]
[332743822,1721499042873,-618.87,0.00013698,2]
[332743823,1721499042882,-526.79,0.00013698,2]
[332743824,1721499042891,-500.0,0.00013698,2]
[332743825,1721499042900,-502.60980733,0.00013698,2]
[332743826,1721499042909,-503.304429,0.00013698,2]
[332743827,1721499042918,-500.0,0.00013698,2]
[332743828,1721499042927,-554.31,0.00013698,2]
[332743829,1721499042936,-251.91577685,0.00013698,2]
[332743830,1721499042945,-8746.09,0.00013698,2]
[332743831,1721499042954,-500.0,0.00013698,2]
[332743832,1721499042963,-500.0,0.00013698,2]
[332743833,1721499042972,-500.0,0.00013698,2]
[332743834,1721499042981,-681.9,0.00013698,2]
[332743835,1721499042990,-500.0,0.00013698,2]
[332743836,1721499042999,-1635.52,0.00013698,2]
[332743837,1721499043008,-525.96507878,0.00013698,2]
[332743838,1721499043018,-500.0,0.00013698,2]
[332743839,1721499043027,-569.31,0.00013698,2]
[332743840,1721499043036,-565.65,0.00013698,2]
[332743841,1721499043045,-500.0,0.00013698,2]
[332743842,1721499043056,-501.58706672,0.00013698,2]
[332743843,1721499043065,-804.28,0.00013698,2]
[332743845,1721499043074,-3996.21,0.00013698,2]
[332743846,1721499043083,-342.45378004,0.00013698,2]
[332743848,1721499043092,-1902.71,0.00013698,2]
[332743850,1721499043101,-500.0,0.00013698,2]
[332743852,1721499043110,-500.0,0.00013698,2]
[332743853,1721499043119,-500.0,0.00013698,2]
[332743855,1721499043128,-525.75,0.00013698,2]
[332743856,1721499043137,-500.0,0.00013698,2]
[332743857,1721499043146,-547.38,0.00013698,2]
[332743858,1721499043156,-500.0,0.00013698,2]
[332743859,1721499043165,-811.0,0.00013698,2]
[332743862,1721499043174,-8303.0,0.00013698,2]
[332743864,1721499043185,-500.0,0.00013698,2]
[332743865,1721499043194,-2541.62,0.00013698,2]
[332743866,1721499043205,-254.88943529,0.00013698,2]
[332743867,1721499043214,-500.0,0.00013698,2]
[332743868,1721499043226,-500.0,0.00013698,2]
[332743869,1721499043235,-2113.76,0.00013698,2]
[332743870,1721499043245,-2587.36,0.00013698,2]
[332743871,1721499043254,-671.59,0.00013698,2]
[332743872,1721499043264,-500.0,0.00013698,2]
[332743873,1721499043273,-500.0,0.00013698,2]
[332743874,1721499043283,-500.0,0.00013698,2]
[332743875,1721499043293,-1058.56,0.00013698,2]
[332743876,1721499043303,-562.63316697,0.00013698,2]
[332743877,1721499043313,-2957.66,0.00013698,2]
[332743878,1721499043323,-641.37526896,0.00013698,2]
[332743879,1721499043332,-2000.0,0.00013698,2]
[332743880,1721499043341,-601.67470916,0.00013698,2]
[332743881,1721499043350,-4572.7,0.00013698,2]
[332743882,1721499043360,-101.07182131,0.00013698,2]
[332743914,1721499046465,-160.297627,0.00012973,2]
[332743915,1721499046475,-160.297627,0.00013008,2]
[332743916,1721499046484,-17.02506909,0.00013043,2]
[332743917,1721499046592,-143.27255791,0.00013043,2]
[332743918,1721499046606,-160.297627,0.00013078,2]
[332743919,1721499046616,-160.297627,0.00013114,2]
[332743920,1721499046625,-160.297627,0.00013149,2]
[332743921,1721499046634,-160.297627,0.00013184,2]
[332743922,1721499046644,-160.297627,0.0001322,2]
[332743923,1721499046655,-160.297627,0.00013255,2]
[332743924,1721499046665,-160.297627,0.0001329,2]
[332743925,1721499046675,-160.297627,0.00013325,2]
[332743926,1721499046685,-160.297627,0.00013361,2]
[332743927,1721499046694,-160.297627,0.00013396,2]
[332743928,1721499046703,-160.297627,0.00013431,2]
[332743929,1721499046712,-160.297627,0.00013467,2]
[332743930,1721499046721,-160.297627,0.00013502,2]
[332743931,1721499046730,-160.297627,0.00013537,2]
[332743932,1721499046739,-153.0,0.00013671,2]
[332743933,1721499046749,-483.94817869,0.00013698,2]
[332743934,1721499046759,-835.24,0.00013698,2]
[332743935,1721499046769,-612.09,0.00013698,2]
[332743936,1721499046779,-500.0,0.00013698,2]
[332743937,1721499046788,-4930.91,0.00013698,2]
[332743938,1721499046798,-500.0,0.00013698,2]
[332743939,1721499046807,-17358.85,0.00013698,2]
[332743940,1721499046817,-500.0,0.00013698,2]
[332743941,1721499046827,-500.0,0.00013698,2]
[332743942,1721499046837,-500.0,0.00013698,2]
[332743943,1721499046846,-500.0,0.00013698,2]
[332743944,1721499046856,-1442.33,0.00013698,2]
[332743945,1721499046866,-500.0,0.00013698,2]
[332743946,1721499046875,-1068.37011016,0.00013698,2]
[332743947,1721499126760,248.68489287,9.999e-05,2]
[332743950,1721499539151,273.37336231,9.9e-05,2]
[332743951,1721499547277,273.37336231,9.9e-05,2]
[332743952,1721499555665,273.37336231,9.9e-05,2]
[332743953,1721499563531,273.37336231,9.9e-05,2]
[332743954,1721499572526,273.37336231,9.9e-05,2]
[332743955,1721499580850,273.37336231,9.9e-05,2]
[332743956,1721499588980,273.37336231,9.9e-05,2]
[332743957,1721499597478,273.37336231,9.9e-05,2]
[332743958,1721499605542,273.37336231,9.9e-05,2]
[332743959,1721499614084,273.37336231,9.9e-05,2]
[332743960,1721499622152,273.37336231,9.9e-05,2]
[332743961,1721499630171,273.37336231,9.9e-05,2]
[332743962,1721499638993,273.37336231,9.9e-05,2]
[332743963,1721499648085,273.37336231,9.9e-05,2]
[332743964,1721499656531,273.37336231,9.9e-05,2]
[332743965,1721499664570,273.37336231,9.9e-05,2]
[332743966,1721499673386,273.37336231,9.9e-05,2]
[332743967,1721499677702,1727.41678163,9.9e-05,2]
[332743968,1721499681233,273.37336231,9.9e-05,2]
[332743969,1721499689326,273.37336231,9.9e-05,2]
[332743970,1721499697445,273.37336231,9.9e-05,2]
[332743971,1721499705639,273.37336231,9.9e-05,2]
[332743972,1721499713526,273.37336231,9.9e-05,2]
[332743973,1721499721837,273.37336231,9.9e-05,2]
[332743974,1721499730536,273.37336231,9.9e-05,2]
[332743975,1721499739334,273.37336231,9.9e-05,2]
[332743976,1721499747228,273.37336231,9.9e-05,2]
[332743977,1721499755350,273.37336231,9.9e-05,2]
[332743978,1721499764518,273.37336231,9.9e-05,2]
[332743979,1721499772849,273.37336231,9.9e-05,2]
[332743980,1721499780585,273.37336231,9.9e-05,2]
[332743981,1721499789913,273.37336231,9.9e-05,2]
[332743982,1721499797275,273.37336231,9.9e-05,2]
[332743983,1721499805403,273.37336231,9.9e-05,2]
[332743984,1721499813374,273.37336231,9.9e-05,2]
[332743985,1721499821507,273.37336231,9.9e-05,2]
[332743986,1721499829971,273.37336231,9.9e-05,2]
[332743987,1721499838163,256.73654205,9.9e-05,2]
[332743991,1721499989277,532.59095872,9.999e-05,2]
[332743992,1721500005678,-300.0,0.00011798,2]
[332743993,1721500005703,-300.0,0.00011798,2]
[332743994,1721500005729,-1373.34219737,0.000119,2]
[332743995,1721500051145,341.48992898,9.999e-05,2]
[332744025,1721500233442,-300.0,0.00011799,2]
[332744026,1721500233453,-245.87563572,0.00011799,2]
[332744027,1721500233502,375.50874833,9.999e-05,2]
[332744031,1721500238973,-54.12436428,0.00011799,2]
[332744032,1721500238984,-836.28954198,0.00011799,2]
[332744033,1721500238994,-155.68344481,0.00012,2]
[332744034,1721500239003,-250.0,0.00012109,2]
[332744035,1721500239013,-250.0,0.00012143,2]
[332744036,1721500239023,-250.0,0.00012176,2]
[332744037,1721500239032,-250.0,0.00012209,2]
[332744038,1721500239041,-24900.0,0.00012227,2]
[332744039,1721500239052,-250.0,0.00012242,2]
[332744040,1721500239061,-250.0,0.00012275,2]
[332744041,1721500239071,-250.0,0.00012309,2]
[332744042,1721500239081,-250.0,0.00012342,2]
[332744043,1721500239090,-250.0,0.00012375,2]
[332744044,1721500239100,-250.0,0.00012375,2]
[332744045,1721500239110,-250.0,0.00012408,2]
[332744046,1721500239119,-250.0,0.00012441,2]
[332744047,1721500239128,-250.0,0.00012475,2]
[332744048,1721500239137,-250.0,0.00012508,2]
[332744049,1721500239147,-250.0,0.00012541,2]
[332744050,1721500239157,-250.0,0.00012574,2]
[332744051,1721500239166,-250.0,0.00012607,2]
[332744052,1721500239176,-250.0,0.00012641,2]
[332744053,1721500239186,-250.0,0.00012674,2]
[332744054,1721500239194,-704.97643839,0.00012706,2]
[332744055,1721500239209,-250.0,0.00012707,2]
[332744056,1721500239219,-250.0,0.0001274,2]
[332744057,1721500239228,-3031.10904808,0.000129,2]
[332744058,1721500239237,-3031.10904805,0.000129,2]
[332744059,1721500239246,-180.0,0.00012955,2]
[332744060,1721500239256,-420.0,0.00012979,2]
[332744061,1721500239266,-306.0,0.00013278,2]
[332744062,1721500239276,-3031.10904805,0.00013403,2]
[332744063,1721500239285,-5259.80909144,0.0001357,2]
[332744064,1721500239294,-150.0,0.00013593,2]
[332744065,1721500239303,-6623.37635815,0.00013598,2]
[332744066,1721500239334,-50542.04195991,0.00013598,2]
[332744067,1721500239344,-736.75996205,0.00013598,2]
[332744068,1721500239353,-2000.0,0.00013598,2]
[332744069,1721500239363,-150.112233,0.000136,2]
[332744070,1721500239373,-360.08491037,0.0001363,2]
[332744071,1721500239382,-390707.309092,0.00013688,2]
[332744072,1721500239392,-861.12376824,0.00013698,2]
[332744073,1721500239401,-512.27304389,0.00013698,2]
[332744074,1721500239410,-833.63,0.00013698,2]
[332744075,1721500239419,-526.48973884,0.00013698,2]
[332744076,1721500239429,-500.0,0.00013698,2]
[332744077,1721500239438,-500.0,0.00013698,2]
[332744078,1721500239447,-500.0,0.00013698,2]
[332744079,1721500239457,-500.0,0.00013698,2]
[332744080,1721500239466,-500.0,0.00013698,2]
[332744081,1721500239475,-579.83,0.00013698,2]
[332744082,1721500239484,-500.0,0.00013698,2]
[332744083,1721500239494,-790.83,0.00013698,2]
[332744084,1721500239503,-503.08189526,0.00013698,2]
[332744085,1721500239512,-500.0,0.00013698,2]
[332744086,1721500239521,-500.0,0.00013698,2]
[332744087,1721500239531,-548.2092026,0.00013698,2]
[332744088,1721500239540,-500.0,0.00013698,2]
[332744089,1721500239550,-500.0,0.00013698,2]
[332744090,1721500239559,-500.0,0.00013698,2]
[332744091,1721500239570,-500.0,0.00013698,2]
[332744092,1721500239579,-548.75997375,0.00013698,2]
[332744093,1721500239589,-500.0,0.00013698,2]
[332744094,1721500239598,-500.0,0.00013698,2]
[332744095,1721500239608,-500.0,0.00013698,2]
[332744096,1721500239617,-500.0,0.00013698,2]
[332744097,1721500239627,-500.0,0.00013698,2]
[332744098,1721500239637,-500.0,0.00013698,2]
[332744099,1721500239647,-500.0,0.00013698,2]
[332744100,1721500239657,-522.90105176,0.00013698,2]
[332744101,1721500239667,-910.78,0.00013698,2]
[332744102,1721500239676,-348.77204299,0.00013698,2]
[332744103,1721500239686,-500.0,0.00013698,2]
[332744104,1721500239696,-250.0,0.00013698,2]
[332744105,1721500239706,-500.0,0.00013698,2]
[332744106,1721500239715,-456.093618,0.00013698,2]
[332744107,1721500239724,-500.0,0.00013698,2]
[332744108,1721500239734,-500.0,0.00013698,2]
[332744109,1721500239744,-500.0,0.00013698,2]
[332744110,1721500239753,-500.0,0.00013698,2]
[332744111,1721500239763,-796.91,0.00013698,2]
[332744112,1721500239772,-500.0,0.00013698,2]
[332744113,1721500239783,-878.74,0.00013698,2]
[332744114,1721500239793,-500.0,0.00013698,2]
[332744115,1721500239802,-1045.53,0.00013698,2]
[332744116,1721500239811,-518.49437446,0.00013698,2]
[332744117,1721500239821,-500.0,0.00013698,2]
[332744118,1721500239831,-500.0,0.00013698,2]
[332744119,1721500239841,-502.86855471,0.00013698,2]
[332744120,1721500239850,-500.0,0.00013698,2]
[332744121,1721500239859,-500.0,0.00013698,2]